[Event "7° Rencontres Internationales des Echecs Francophones"]
[Site "PARIS, France"]
[Date "2019.08.10"]
[Round "4.2"]
[White "Gurevich, Mikhail"]
[Black "Rakotomaharo, Fy Antenaina"]
[Result "1-0"]
[TimeControl "90'+30' + 30seconds/move"]
[WhiteElo "2559"]
[BlackElo "2364"]

1. c4 {[%clk 00:05:03]} {[%emt 00:00:01]} Nf6 {[%clk 00:05:01]} {[%emt
00:00:06]} 2. Nc3 {[%clk 00:04:59]} {[%emt 00:00:06]} d5 {[%clk 00:05:03]} 3.
cxd5 {[%clk 00:05:01]} {[%emt 00:00:02]} Nxd5 {[%clk 00:05:05]} 4. g3 {[%clk
00:05:03]} g6 {[%clk 00:05:07]} 5. Bg2 {[%clk 00:05:04]} {[%emt 00:00:01]} Nb6
{[%clk 00:05:10]} {[%emt 00:00:01]} 6. d3 {[%clk 00:04:57]} {[%emt 00:00:10]}
Bg7 {[%clk 00:05:11]} {[%emt 00:00:02]} 7. Be3 {[%clk 00:04:49]} {[%emt
00:00:10]} Nc6 {[%clk 00:05:04]} {[%emt 00:00:11]} 8. Nf3 {[%clk 00:04:36]}
{[%emt 00:00:15]} O-O {[%emt 00:00:16]} 9. Qc1 Re8 {[%clk 00:04:49]} {[%emt
00:00:05]} 10. O-O {[%clk 00:04:31]} {[%emt 00:00:11]} a5 {[%clk 00:04:42]}
{[%emt 00:00:10]} 11. Bh6 {[%clk 00:04:24]} {[%emt 00:00:10]} Bh8 {[%clk
00:04:44]} 12. Rd1 {[%clk 00:04:24]} {[%emt 00:00:04]} e5 {[%clk 00:04:37]}
{[%emt 00:00:10]} 13. Bg5 {[%clk 00:04:25]} {[%emt 00:00:01]} f6 {[%clk
00:04:25]} {[%emt 00:00:14]} 14. Be3 {[%clk 00:04:26]} {[%emt 00:00:02]} f5
{[%clk 00:04:13]} {[%emt 00:00:16]} 15. Bxb6 {[%clk 00:04:05]} {[%emt
00:00:24]} cxb6 {[%emt 00:00:03]} 16. e3 Be6 {[%clk 00:03:53]} {[%emt
00:00:23]} 17. d4 {[%clk 00:04:07]} {[%emt 00:00:04]} exd4 {[%clk 00:03:53]}
{[%emt 00:00:03]} 18. Nxd4 {[%clk 00:04:00]} {[%emt 00:00:09]} Nxd4 {[%clk
00:03:51]} {[%emt 00:00:06]} 19. exd4 {[%clk 00:04:01]} {[%emt 00:00:02]} Qd7
{[%clk 00:03:44]} {[%emt 00:00:09]} 20. Qf4 {[%clk 00:03:54]} {[%emt 00:00:09]}
b5 {[%clk 00:03:32]} {[%emt 00:00:17]} 21. d5 {[%clk 00:03:27]} {[%emt
00:00:30]} Bf7 {[%clk 00:03:33]} {[%emt 00:00:02]} 22. d6 {[%clk 00:03:28]}
{[%emt 00:00:02]} Be5 {[%clk 00:03:12]} {[%emt 00:00:24]} 23. Qh4 {[%clk
00:02:41]} {[%emt 00:00:49]} b4 {[%clk 00:03:14]} {[%emt 00:00:02]} 24. Nd5
{[%clk 00:02:38]} {[%emt 00:00:07]} Qxd6 {[%clk 00:03:16]} 25. Rac1 {[%clk
00:02:36]} {[%emt 00:00:04]} Rad8 {[%clk 00:03:08]} {[%emt 00:00:11]} 26. b3
{[%clk 00:02:26]} {[%emt 00:00:13]} Kg7 {[%clk 00:02:45]} {[%emt 00:00:25]} 27.
Bf3 {[%clk 00:02:23]} {[%emt 00:00:06]} Bf6 {[%clk 00:01:14]} {[%emt 00:01:34]}
28. Qc4 {[%clk 00:01:39]} {[%emt 00:00:47]} Re5 {[%clk 00:00:31]} {[%emt
00:00:46]} 29. Qc7 {[%clk 00:01:40]} {[%emt 00:00:02]} Rd7 {[%clk 00:00:09]}
{[%emt 00:00:25]} 30. Qxd6 {[%clk 00:01:15]} {[%emt 00:00:28]} Rxd6 {[%clk
00:00:11]} 31. Rc7 {[%clk 00:01:17]} Bd8 {[%clk 00:00:07]} {[%emt 00:00:08]} 32.
Rxb7 {[%clk 00:01:18]} {[%emt 00:00:02]} Kg8 {[%clk 00:00:09]} {[%emt
00:00:01]} 33. Nf6+ {[%clk 00:01:17]} {[%emt 00:00:04]} Rxf6 {[%clk 00:00:06]}
{[%emt 00:00:06]} 34. Rxd8+ {[%clk 00:01:18]} {[%emt 00:00:01]} Kg7 {[%clk
00:00:09]} 35. Bd5 {[%clk 00:01:14]} {[%emt 00:00:08]} g5 {[%clk 00:00:04]}
{[%emt 00:00:08]} 36. Rdd7 {[%clk 00:01:12]} {[%emt 00:00:05]} Rxd5 37. Rxd5
{[%clk 00:01:14]} Kg6 {[%clk 00:00:08]} {[%emt 00:00:02]} 38. Rxa5 {[%clk
00:01:12]} {[%emt 00:00:04]} Rd6 {[%clk 00:00:10]} 39. f3 {[%clk 00:01:08]}
{[%emt 00:00:07]} Bd5 {[%clk 00:00:09]} {[%emt 00:00:04]} 40. Rxb4 {[%clk
00:01:07]} {[%emt 00:00:04]} Bxf3 {[%clk 00:00:12]} 41. Kf2 {[%clk 00:01:08]}
{[%emt 00:00:01]} g4 {[%clk 00:00:14]} 42. Ke3 {[%clk 00:01:09]} {[%emt
00:00:03]} Kg5 {[%clk 00:00:15]} {[%emt 00:00:03]} 43. h4+ {[%clk 00:01:07]}
{[%emt 00:00:05]} Kf6 {[%clk 00:00:05]} {[%emt 00:00:12]} 44. Rab5 {[%clk
00:00:58]} {[%emt 00:00:12]} Ke7 {[%clk 00:00:05]} {[%emt 00:00:03]} 45. Rxf5
{[%clk 00:00:56]} {[%emt 00:00:05]} Re6+ {[%clk 00:00:07]} 46. Kf4 {[%clk
00:00:58]} Re2 {[%clk 00:00:10]} 47. Re5+ {[%clk 00:01:00]} 1-0

[Event "7° Rencontres Internationales des Echecs Francophones"]
[Site "PARIS, France"]
[Date "2019.08.10"]
[Round "4.10"]
[White "Vedmediuc, Serghei"]
[Black "Ternault, Mathieu"]
[Result "0-1"]
[TimeControl "90'+30' + 30seconds/move"]
[WhiteElo "2469"]
[BlackElo "2158"]

1. e4 {[%clk 00:05:05]} Nc6 {[%clk 00:05:05]} {[%emt 00:00:02]} 2. Nf3 {[%clk
00:05:07]} d6 {[%clk 00:05:06]} {[%emt 00:00:01]} 3. d4 {[%clk 00:05:08]}
{[%emt 00:00:02]} Nf6 {[%clk 00:05:08]} {[%emt 00:00:01]} 4. c3 {[%clk
00:05:10]} {[%emt 00:00:02]} g6 {[%clk 00:05:10]} {[%emt 00:00:01]} 5. Bd3
{[%clk 00:05:12]} Bg7 {[%clk 00:05:11]} {[%emt 00:00:01]} 6. O-O {[%clk
00:05:13]} {[%emt 00:00:02]} O-O {[%clk 00:05:12]} {[%emt 00:00:02]} 7. Re1
{[%clk 00:05:14]} {[%emt 00:00:02]} e5 {[%clk 00:05:14]} {[%emt 00:00:02]} 8.
d5 {[%clk 00:05:15]} {[%emt 00:00:02]} Ne7 {[%clk 00:05:07]} {[%emt 00:00:10]}
9. c4 {[%clk 00:05:17]} a5 {[%clk 00:04:53]} {[%emt 00:00:18]} 10. Nc3 {[%clk
00:05:18]} {[%emt 00:00:01]} b6 {[%clk 00:04:52]} {[%emt 00:00:04]} 11. a3
{[%clk 00:05:17]} {[%emt 00:00:04]} h6 {[%clk 00:04:45]} {[%emt 00:00:10]} 12.
Rb1 {[%clk 00:05:19]} {[%emt 00:00:02]} Nh7 {[%clk 00:04:39]} {[%emt 00:00:08]}
13. b4 {[%clk 00:05:15]} {[%emt 00:00:07]} axb4 {[%clk 00:04:35]} {[%emt
00:00:07]} 14. axb4 {[%clk 00:05:17]} {[%emt 00:00:01]} f5 {[%clk 00:04:36]}
{[%emt 00:00:02]} 15. c5 {[%clk 00:05:04]} {[%emt 00:00:17]} f4 {[%clk
00:04:28]} {[%emt 00:00:11]} 16. Qc2 {[%clk 00:04:39]} {[%emt 00:00:27]} Bd7
{[%clk 00:03:49]} {[%emt 00:00:43]} 17. Bd2 {[%clk 00:04:27]} {[%emt 00:00:15]}
g5 {[%clk 00:03:49]} {[%emt 00:00:02]} 18. Rec1 {[%clk 00:03:24]} {[%emt
00:01:05]} Ng6 {[%clk 00:03:37]} {[%emt 00:00:16]} 19. cxd6 {[%clk 00:03:19]}
{[%emt 00:00:09]} cxd6 {[%clk 00:03:38]} 20. Nb5 {[%clk 00:03:21]} g4 {[%clk
00:03:28]} {[%emt 00:00:14]} 21. Ne1 {[%clk 00:03:22]} {[%emt 00:00:03]} Bxb5
{[%clk 00:03:12]} {[%emt 00:00:19]} 22. Bxb5 {[%clk 00:03:23]} Qh4 {[%clk
00:03:04]} {[%emt 00:00:12]} 23. Qc7 {[%clk 00:02:44]} {[%emt 00:00:42]} Ra2
{[%clk 00:02:33]} {[%emt 00:00:34]} 24. Rc2 {[%clk 00:02:39]} {[%emt 00:00:07]}
Rxc2 {[%clk 00:02:34]} {[%emt 00:00:03]} 25. Qxc2 {[%clk 00:02:37]} {[%emt
00:00:04]} Ng5 {[%clk 00:02:19]} {[%emt 00:00:18]} 26. Rb3 {[%clk 00:02:39]}
Ra8 {[%emt 00:01:01]} 27. Qb1 {[%clk 00:02:11]} {[%emt 00:00:05]} f3 {[%clk
00:01:25]} {[%emt 00:00:27]} 28. Bxg5 {[%clk 00:00:45]} {[%emt 00:01:28]} Qxg5
{[%clk 00:01:26]} {[%emt 00:00:02]} 29. g3 {[%clk 00:00:45]} {[%emt 00:00:03]}
h5 {[%clk 00:01:17]} {[%emt 00:00:12]} 30. Bc6 {[%clk 00:00:38]} {[%emt
00:00:10]} Ra7 {[%clk 00:01:16]} {[%emt 00:00:05]} 31. Rc3 {[%clk 00:00:33]}
{[%emt 00:00:07]} Qd2 {[%clk 00:00:49]} {[%emt 00:00:30]} 32. Qc1 {[%clk
00:00:24]} {[%emt 00:00:12]} Qd4 {[%clk 00:00:48]} {[%emt 00:00:04]} 33. Ra3
{[%clk 00:00:08]} {[%emt 00:00:19]} Rxa3 {[%clk 00:00:40]} {[%emt 00:00:12]} 34.
Qxa3 {[%clk 00:00:10]} Qxe4 {[%clk 00:00:41]} {[%emt 00:00:01]} 35. Qc1 {[%clk
00:00:09]} {[%emt 00:00:03]} Qxb4 {[%clk 00:00:36]} {[%emt 00:00:08]} 36. Bd7
{[%clk 00:00:09]} {[%emt 00:00:04]} e4 {[%clk 00:00:29]} {[%emt 00:00:11]} 37.
Bf5 {[%clk 00:00:07]} {[%emt 00:00:05]} Ne7 {[%clk 00:00:22]} {[%emt 00:00:11]}
38. Be6+ {[%clk 00:00:07]} {[%emt 00:00:03]} Kh7 {[%clk 00:00:23]} {[%emt
00:00:02]} 39. Nc2 {[%clk 00:00:08]} {[%emt 00:00:02]} Qc3 {[%clk 00:00:13]}
{[%emt 00:00:14]} 40. Qb1 {[%clk 00:00:07]} {[%emt 00:00:03]} Bd4 {[%clk
00:00:13]} {[%emt 00:00:03]} 41. Nxd4 {[%clk 00:00:07]} {[%emt 00:00:03]} Qxd4
{[%clk 00:00:15]} {[%emt 00:00:01]} 42. h3 {[%clk 00:00:10]} h4 {[%clk
00:00:15]} {[%emt 00:00:04]} 43. hxg4 {[%clk 00:00:05]} {[%emt 00:00:08]} hxg3
{[%clk 00:00:16]} {[%emt 00:00:01]} 0-1

[Event "7° Rencontres Internationales des Echecs Francophones"]
[Site "PARIS, France"]
[Date "2019.08.10"]
[Round "4.3"]
[White "Dardha, Daniel"]
[Black "David, Alberto"]
[Result "1-0"]
[TimeControl "90'+30' + 30seconds/move"]
[WhiteElo "2390"]
[BlackElo "2554"]

1. Nf3 {[%clk 00:05:05]} {[%emt 00:00:01]} Nf6 {[%clk 00:05:04]} {[%emt
00:00:02]} 2. g3 {[%clk 00:05:07]} {[%emt 00:00:01]} b6 {[%clk 00:05:06]}
{[%emt 00:00:01]} 3. Bg2 {[%clk 00:05:09]} Bb7 {[%clk 00:05:09]} 4. O-O {[%clk
00:05:10]} {[%emt 00:00:03]} g6 {[%clk 00:05:07]} {[%emt 00:00:05]} 5. b3
{[%clk 00:05:11]} {[%emt 00:00:02]} Bg7 {[%clk 00:05:08]} {[%emt 00:00:02]} 6.
Bb2 {[%clk 00:05:13]} O-O {[%clk 00:05:10]} {[%emt 00:00:02]} 7. c4 {[%clk
00:05:15]} {[%emt 00:00:02]} e6 {[%clk 00:05:05]} {[%emt 00:00:07]} 8. d3
{[%clk 00:05:09]} {[%emt 00:00:08]} d6 {[%clk 00:05:04]} {[%emt 00:00:04]} 9.
Nc3 {[%clk 00:05:08]} {[%emt 00:00:05]} Nbd7 {[%clk 00:05:02]} {[%emt
00:00:05]} 10. Qc2 {[%clk 00:04:58]} {[%emt 00:00:13]} c5 {[%clk 00:05:00]}
{[%emt 00:00:05]} 11. Rad1 {[%clk 00:04:53]} {[%emt 00:00:08]} Rc8 {[%clk
00:05:01]} {[%emt 00:00:01]} 12. Qb1 {[%clk 00:04:47]} {[%emt 00:00:10]} a6
{[%clk 00:05:00]} {[%emt 00:00:04]} 13. d4 {[%clk 00:04:49]} {[%emt 00:00:02]}
Qc7 {[%clk 00:04:51]} {[%emt 00:00:11]} 14. e4 {[%clk 00:04:43]} {[%emt
00:00:09]} cxd4 {[%clk 00:04:41]} {[%emt 00:00:14]} 15. Nxd4 {[%clk 00:04:44]}
Rfe8 {[%clk 00:04:37]} {[%emt 00:00:07]} 16. Rfe1 {[%clk 00:04:46]} {[%emt
00:00:01]} Qb8 {[%clk 00:04:36]} {[%emt 00:00:04]} 17. Rd2 {[%clk 00:04:24]}
{[%emt 00:00:25]} Nc5 {[%clk 00:04:35]} {[%emt 00:00:04]} 18. h3 {[%clk
00:04:01]} {[%emt 00:00:26]} h5 {[%clk 00:04:35]} {[%emt 00:00:02]} 19. Kh2
{[%clk 00:03:58]} {[%emt 00:00:06]} h4 {[%clk 00:04:37]} {[%emt 00:00:02]} 20.
Nde2 {[%clk 00:03:41]} {[%emt 00:00:20]} hxg3+ {[%clk 00:04:24]} {[%emt
00:00:16]} 21. Nxg3 {[%clk 00:03:42]} {[%emt 00:00:02]} Bh6 {[%clk 00:04:25]}
{[%emt 00:00:01]} 22. Rdd1 {[%clk 00:03:31]} {[%emt 00:00:15]} e5 {[%clk
00:03:44]} {[%emt 00:00:44]} 23. Nd5 {[%clk 00:02:46]} {[%emt 00:00:48]} Bxd5
{[%clk 00:03:45]} {[%emt 00:00:02]} 24. exd5 {[%clk 00:02:47]} {[%emt
00:00:02]} b5 {[%clk 00:03:44]} {[%emt 00:00:05]} 25. Bf1 {[%clk 00:02:19]}
{[%emt 00:00:29]} b4 {[%clk 00:03:41]} {[%emt 00:00:07]} 26. Bc1 {[%clk
00:02:11]} {[%emt 00:00:12]} Bf4 {[%clk 00:03:32]} {[%emt 00:00:11]} 27. Qb2
{[%clk 00:01:38]} {[%emt 00:00:37]} Kg7 {[%clk 00:03:05]} {[%emt 00:00:30]} 28.
Be2 {[%clk 00:01:07]} {[%emt 00:00:34]} Rh8 {[%clk 00:03:01]} {[%emt 00:00:06]}
29. Bxf4 {[%clk 00:01:07]} {[%emt 00:00:03]} exf4 {[%clk 00:03:03]} 30. Nf5+
{[%clk 00:01:09]} {[%emt 00:00:02]} gxf5 {[%clk 00:02:53]} {[%emt 00:00:13]} 31.
Rg1+ {[%clk 00:01:11]} {[%emt 00:00:01]} Kf8 {[%clk 00:02:54]} {[%emt
00:00:02]} 32. Qxf6 {[%clk 00:01:12]} {[%emt 00:00:02]} Rh7 {[%clk 00:02:56]}
33. Qxf5 {[%clk 00:01:03]} {[%emt 00:00:12]} Rg7 {[%clk 00:02:44]} {[%emt
00:00:15]} 34. Rxg7 {[%clk 00:00:58]} {[%emt 00:00:08]} Kxg7 {[%clk 00:02:46]}
35. Bh5 {[%clk 00:00:47]} {[%emt 00:00:15]} Rc7 {[%clk 00:01:43]} {[%emt
00:01:06]} 36. Qg5+ {[%clk 00:00:47]} {[%emt 00:00:04]} Kf8 {[%clk 00:01:45]}
{[%emt 00:00:02]} 37. Re1 {[%clk 00:00:48]} {[%emt 00:00:01]} 1-0

[Event "7° Rencontres Internationales des Echecs Francophones"]
[Site "PARIS, France"]
[Date "2019.08.10"]
[Round "4.6"]
[White "Ider, Borya"]
[Black "Ralison, Milanto Harifidy"]
[Result "1-0"]
[TimeControl "90'+30' + 30seconds/move"]
[WhiteElo "2492"]
[BlackElo "2277"]

1. Nf3 {[%clk 00:05:04]} {[%emt 00:00:01]} Nf6 {[%clk 00:05:02]} {[%emt
00:00:05]} 2. b3 {[%clk 00:05:05]} {[%emt 00:00:02]} a5 {[%clk 00:05:03]}
{[%emt 00:00:02]} 3. Bb2 {[%clk 00:05:06]} {[%emt 00:00:02]} a4 {[%clk
00:05:03]} {[%emt 00:00:02]} 4. e3 {[%clk 00:05:07]} {[%emt 00:00:02]} e6
{[%clk 00:05:05]} {[%emt 00:00:01]} 5. d4 {[%clk 00:04:49]} {[%emt 00:00:21]}
Ne4 {[%clk 00:04:35]} {[%emt 00:00:33]} 6. Bd3 {[%clk 00:04:48]} {[%emt
00:00:04]} d5 {[%clk 00:04:35]} {[%emt 00:00:03]} 7. O-O {[%clk 00:04:47]}
{[%emt 00:00:03]} Nd7 {[%clk 00:04:20]} {[%emt 00:00:19]} 8. Bxe4 {[%clk
00:04:47]} {[%emt 00:00:04]} dxe4 {[%clk 00:04:21]} {[%emt 00:00:01]} 9. Nfd2
{[%clk 00:04:48]} {[%emt 00:00:01]} f5 {[%clk 00:04:02]} {[%emt 00:00:22]} 10.
f3 {[%clk 00:04:39]} {[%emt 00:00:13]} Qg5 {[%clk 00:03:38]} {[%emt 00:00:26]}
11. fxe4 {[%clk 00:04:36]} {[%emt 00:00:06]} Qxe3+ {[%clk 00:03:37]} {[%emt
00:00:05]} 12. Kh1 {[%clk 00:04:38]} Nf6 {[%clk 00:03:21]} {[%emt 00:00:18]} 13.
exf5 {[%clk 00:04:36]} {[%emt 00:00:06]} b5 {[%clk 00:02:39]} {[%emt 00:00:44]}
14. d5 {[%clk 00:04:13]} {[%emt 00:00:27]} Qh6 {[%clk 00:01:53]} {[%emt
00:00:49]} 15. fxe6 {[%clk 00:03:23]} {[%emt 00:00:53]} Bd6 {[%clk 00:01:50]}
{[%emt 00:00:05]} 16. h3 {[%clk 00:03:16]} {[%emt 00:00:10]} O-O {[%clk
00:01:25]} {[%emt 00:00:28]} 17. Nc3 {[%clk 00:03:17]} {[%emt 00:00:03]} Bb7
{[%clk 00:00:51]} {[%emt 00:00:38]} 18. Nde4 {[%clk 00:03:12]} {[%emt
00:00:07]} Be5 {[%clk 00:00:29]} {[%emt 00:00:24]} 19. Ba3 {[%clk 00:02:45]}
{[%emt 00:00:31]} Rfe8 {[%clk 00:00:23]} {[%emt 00:00:09]} 20. Nxf6+ {[%clk
00:02:43]} {[%emt 00:00:05]} Bxf6 {[%clk 00:00:24]} {[%emt 00:00:02]} 21. Nxb5
{[%clk 00:02:34]} {[%emt 00:00:12]} Bxa1 {[%clk 00:00:22]} {[%emt 00:00:04]} 22.
Nxc7 {[%clk 00:02:34]} {[%emt 00:00:04]} Be5 {[%clk 00:00:11]} {[%emt
00:00:14]} 23. Nxa8 {[%clk 00:02:24]} {[%emt 00:00:14]} Bxa8 {[%clk 00:00:12]}
{[%emt 00:00:02]} 24. c4 {[%clk 00:02:23]} {[%emt 00:00:04]} Qg5 {[%clk
00:00:10]} {[%emt 00:00:04]} 25. Qf3 {[%clk 00:02:18]} {[%emt 00:00:08]} Qf6
{[%clk 00:00:10]} {[%emt 00:00:03]} 26. Qe2 {[%clk 00:02:03]} {[%emt 00:00:18]}
Qg5 {[%clk 00:00:11]} {[%emt 00:00:02]} 27. Bc1 {[%clk 00:02:04]} {[%emt
00:00:01]} Qg3 {[%clk 00:00:13]} {[%emt 00:00:02]} 28. Kg1 {[%clk 00:01:28]}
{[%emt 00:00:39]} Bd4+ {[%clk 00:00:10]} {[%emt 00:00:07]} 29. Kh1 {[%clk
00:01:30]} Be5 {[%clk 00:00:10]} {[%emt 00:00:02]} 30. Kg1 {[%clk 00:01:21]}
{[%emt 00:00:11]} Bd4+ {[%clk 00:00:07]} {[%emt 00:00:07]} 31. Rf2 {[%clk
00:01:21]} {[%emt 00:00:04]} Bxf2+ {[%clk 00:00:05]} {[%emt 00:00:04]} 32. Qxf2
{[%clk 00:01:23]} Qxf2+ {[%clk 00:00:07]} 33. Kxf2 {[%clk 00:01:25]} {[%emt
00:00:01]} Kf8 {[%clk 00:00:09]} 34. Ba3+ {[%clk 00:01:27]} Kg8 {[%clk
00:00:12]} 35. d6 {[%clk 00:01:23]} {[%emt 00:00:07]} Rf8+ {[%clk 00:00:06]}
{[%emt 00:00:09]} 36. Kg3 {[%clk 00:01:24]} {[%emt 00:00:02]} Bc6 {[%clk
00:00:08]} {[%emt 00:00:02]} 37. d7 {[%clk 00:01:24]} {[%emt 00:00:02]} Ra8
{[%clk 00:00:09]} {[%emt 00:00:02]} 38. Be7 {[%clk 00:01:24]} {[%emt 00:00:03]}
axb3 {[%clk 00:00:10]} {[%emt 00:00:02]} 39. axb3 {[%clk 00:01:26]} g6 {[%clk
00:00:11]} {[%emt 00:00:02]} 40. d8=Q+ {[%clk 00:01:26]} {[%emt 00:00:04]} Rxd8
{[%clk 00:00:11]} {[%emt 00:00:02]} 41. Bxd8 {[%clk 00:01:28]} Kf8 {[%clk
00:00:13]} {[%emt 00:00:02]} 42. Bf6 {[%clk 00:01:30]} Be4 {[%clk 00:00:15]}
{[%emt 00:00:02]} 43. b4 {[%clk 00:01:32]} Bd3 {[%clk 00:00:16]} {[%emt
00:00:01]} 44. c5 {[%clk 00:01:32]} {[%emt 00:00:03]} Bb5 {[%clk 00:00:18]}
{[%emt 00:00:01]} 45. Kf4 {[%clk 00:01:34]} Bc4 {[%clk 00:00:18]} {[%emt
00:00:03]} 46. Ke5 {[%clk 00:01:36]} Ke8 {[%clk 00:00:19]} {[%emt 00:00:02]} 47.
Kd6 {[%clk 00:01:38]} Bf1 {[%clk 00:00:20]} {[%emt 00:00:03]} 48. c6 {[%clk
00:01:39]} {[%emt 00:00:01]} Bxg2 {[%clk 00:00:21]} {[%emt 00:00:02]} 49. b5
{[%clk 00:01:41]} Bf3 {[%clk 00:00:21]} {[%emt 00:00:02]} 50. b6 {[%clk
00:01:44]} {[%emt 00:00:02]} 1-0

[Event "7° Rencontres Internationales des Echecs Francophones"]
[Site "PARIS, France"]
[Date "2019.08.10"]
[Round "4.7"]
[White "Leconte, Jean-Olivier"]
[Black "Chabanon, Jean-Luc"]
[Result "0-1"]
[TimeControl "90'+30' + 30seconds/move"]
[WhiteElo "2267"]
[BlackElo "2448"]

1. e4 {[%emt 00:00:01]} Nf6 2. Nc3 {[%clk 00:04:57]} {[%emt 00:00:10]} d5
{[%clk 00:05:05]} {[%emt 00:00:04]} 3. exd5 {[%clk 00:04:53]} {[%emt 00:00:07]}
Nxd5 {[%clk 00:05:07]} {[%emt 00:00:02]} 4. Bc4 {[%clk 00:04:53]} {[%emt
00:00:02]} e6 {[%clk 00:04:54]} {[%emt 00:00:17]} 5. Nf3 {[%clk 00:04:51]}
{[%emt 00:00:05]} Nb6 {[%clk 00:04:45]} {[%emt 00:00:12]} 6. Bb3 {[%clk
00:04:48]} {[%emt 00:00:06]} c5 {[%clk 00:04:42]} {[%emt 00:00:06]} 7. d3
{[%clk 00:04:48]} {[%emt 00:00:02]} Nc6 {[%clk 00:04:40]} {[%emt 00:00:06]} 8.
a3 {[%clk 00:04:44]} {[%emt 00:00:08]} Be7 {[%clk 00:04:40]} {[%emt 00:00:02]}
9. O-O {[%clk 00:04:43]} {[%emt 00:00:03]} O-O {[%clk 00:04:39]} {[%emt
00:00:06]} 10. Bf4 {[%clk 00:04:31]} {[%emt 00:00:13]} Bd7 {[%clk 00:04:27]}
{[%emt 00:00:16]} 11. Ne4 {[%clk 00:04:12]} {[%emt 00:00:22]} Nd4 {[%clk
00:03:54]} {[%emt 00:00:37]} 12. Nxd4 {[%clk 00:03:48]} {[%emt 00:00:27]} cxd4
{[%clk 00:03:55]} {[%emt 00:00:02]} 13. Re1 {[%clk 00:03:18]} {[%emt 00:00:32]}
Bc6 {[%clk 00:03:46]} {[%emt 00:00:12]} 14. Qh5 {[%clk 00:03:02]} {[%emt
00:00:18]} Bd5 {[%clk 00:03:35]} {[%emt 00:00:15]} 15. Bg5 {[%clk 00:02:35]}
{[%emt 00:00:29]} Bxg5 {[%clk 00:02:53]} {[%emt 00:00:46]} 16. Nxg5 {[%clk
00:02:35]} {[%emt 00:00:02]} h6 {[%clk 00:02:54]} {[%emt 00:00:03]} 17. Nf3
{[%clk 00:02:26]} {[%emt 00:00:11]} Bxb3 {[%clk 00:01:39]} {[%emt 00:01:19]} 18.
cxb3 {[%clk 00:02:28]} {[%emt 00:00:01]} Rc8 {[%clk 00:01:35]} {[%emt
00:00:07]} 19. Re4 {[%clk 00:02:23]} {[%emt 00:00:06]} Nd5 {[%clk 00:00:46]}
{[%emt 00:00:54]} 20. Rxd4 {[%clk 00:02:10]} {[%emt 00:00:17]} Rc2 {[%clk
00:00:47]} {[%emt 00:00:02]} 21. h3 {[%clk 00:01:41]} {[%emt 00:00:31]} Rxb2
{[%clk 00:00:43]} {[%emt 00:00:08]} 22. b4 {[%clk 00:01:41]} {[%emt 00:00:02]}
Qf6 {[%clk 00:00:42]} {[%emt 00:00:04]} 23. Qe5 {[%clk 00:01:29]} {[%emt
00:00:15]} Rc8 {[%clk 00:00:37]} {[%emt 00:00:08]} 24. Rc4 {[%clk 00:01:25]}
{[%emt 00:00:07]} Rd8 {[%clk 00:00:27]} {[%emt 00:00:14]} 25. Rac1 {[%clk
00:01:26]} {[%emt 00:00:02]} Qxe5 {[%clk 00:00:23]} {[%emt 00:00:07]} 26. Nxe5
{[%clk 00:01:27]} {[%emt 00:00:01]} f6 {[%clk 00:00:24]} {[%emt 00:00:03]} 27.
Rc8 {[%clk 00:00:50]} {[%emt 00:00:40]} Rxc8 {[%clk 00:00:24]} {[%emt
00:00:03]} 28. Rxc8+ {[%clk 00:00:52]} Kh7 {[%clk 00:00:27]} 29. Nc4 {[%clk
00:00:43]} {[%emt 00:00:13]} Rb1+ {[%clk 00:00:24]} {[%emt 00:00:05]} 30. Kh2
{[%clk 00:00:45]} {[%emt 00:00:01]} Rb3 {[%clk 00:00:18]} {[%emt 00:00:10]} 31.
Rb8 {[%clk 00:00:45]} {[%emt 00:00:02]} b6 {[%clk 00:00:18]} {[%emt 00:00:03]}
32. Rb7 {[%clk 00:00:45]} {[%emt 00:00:02]} Rxd3 {[%clk 00:00:17]} {[%emt
00:00:04]} 33. Nd6 {[%clk 00:00:47]} {[%emt 00:00:01]} a5 {[%clk 00:00:17]}
{[%emt 00:00:03]} 34. Ne8 {[%clk 00:00:49]} {[%emt 00:00:01]} Kg6 {[%clk
00:00:18]} {[%emt 00:00:02]} 35. g4 {[%clk 00:00:48]} {[%emt 00:00:04]} Kg5
{[%clk 00:00:20]} {[%emt 00:00:02]} 36. Rxg7+ {[%clk 00:00:44]} {[%emt
00:00:07]} Kh4 {[%clk 00:00:18]} {[%emt 00:00:05]} 37. Rg6 {[%clk 00:00:39]}
{[%emt 00:00:08]} Rxh3+ {[%clk 00:00:19]} {[%emt 00:00:02]} 38. Kg1 {[%clk
00:00:41]} Rf3 {[%clk 00:00:14]} {[%emt 00:00:08]} 39. Rxh6+ {[%clk 00:00:41]}
{[%emt 00:00:04]} Kxg4 {[%clk 00:00:15]} {[%emt 00:00:02]} 40. bxa5 {[%clk
00:00:42]} {[%emt 00:00:01]} bxa5 41. a4 {[%clk 00:00:38]} {[%emt 00:00:07]}
Kg5 {[%clk 00:00:19]} {[%emt 00:00:01]} 42. Rh8 {[%clk 00:00:38]} {[%emt
00:00:03]} Ra3 {[%clk 00:00:21]} {[%emt 00:00:02]} 43. Nd6 {[%clk 00:00:37]}
{[%emt 00:00:03]} Rxa4 {[%clk 00:00:22]} {[%emt 00:00:03]} 44. Rg8+ {[%clk
00:00:33]} {[%emt 00:00:06]} Kf4 {[%clk 00:00:23]} {[%emt 00:00:01]} 0-1